[Event "EYCC Girls U10 2021"]
[Site "Tornelo"]
[Date "2021.10.15"]
[Round "2.10"]
[White "Kuzmina, Sofya Vl"]
[Black "Gratskova, Anastasia"]
[Result "0-1"]
[ECO "E01"]
[WhiteElo "1102"]
[BlackElo "1313"]
[Annotator "NA"]
[PlyCount "80"]
[EventDate "2021.10.15"]
[EventType "swiss"]
[EventCountry "NET"]
[SourceTitle "playchess.com"]
[Source "ChessBase"]
[SourceQuality "1"]
[TimeControl "5400+30"]

1. d4 {[%emt 0:00:30]} d5 {[%emt 0:00:37]} 2. c4 {[%emt 0:00:06]} e6 {[%emt 0:00:14]} 3. Nf3 {[%emt 0:00:20]} Nf6 {[%emt 0:00:11]} 4. g3 {[%emt 0:00:10]} c6 {[%emt 0:00:28]} 5. Bg2 {[%emt 0:00:18]} Bd6 {[%emt 0:00:37]} 6. Nc3 {[%emt 0:00:29]} O-O {[%emt 0:00:17]} 7. Qc2 {[%emt 0:01:25]} Nbd7 {[%emt 0:00:45]} 8. Bg5 {[%emt 0:03:33]} h6 {[%emt 0:02:52]} 9. Bf4 {[%emt 0:01:24]} Qc7 {[%emt 0:10:00]} 10. Qd2 {[%emt 0:04:50]} Bxf4 {[%emt 0:06:55]} 11. gxf4 {[%emt 0:00:09]} Ne4 {[%emt 0:01:02]} 12. Nxe4 {[%emt 0:01:19]} dxe4 {[%emt 0:00:23]} 13. Nh4 {[%emt 0:00:33]} Qd8 {[%emt 0:00:34]} 14. O-O-O {[%emt 0:03:05]} Qxh4 {[%emt 0:00:25]} 15. Bxe4 {[%emt 0:00:58]} Nb6 {[%emt 0:02:07]} 16. Bc2 {[%emt 0:01:08]} f5 {[%emt 0:10:03]} 17. Bb3 {[%emt 0:08:24]} Kh8 {[%emt 0:03:07]} 18. Rhg1 {[%emt 0:03:10]} a5 {[%emt 0:02:08]} 19. d5 {[%emt 0:01:50]} Qf6 {[%emt 0:07:44]} 20. dxc6 {[%emt 0:02:11]} bxc6 {[%emt 0:00:14]} 21. Qe3 {[%emt 0:02:01]} Rb8 {[%emt 0:04:25]} 22. Qc5 {[%emt 0:01:51]} a4 {[%emt 0:05:58]} 23. Bc2 {[%emt 0:00:46]} Ba6 {[%emt 0:02:01]} 24. Rd4 {[%emt 0:01:45]} Nxc4 {[%emt 0:02:23]} 25. e3 {[%emt 0:03:05]} Nxb2 {[%emt 0:03:09]} 26. Qxc6 {[%emt 0:01:27]} Bd3 {[%emt 0:04:11]} 27. Kd2 {[%emt 0:03:03]} Bxc2 {[%emt 0:00:28]} 28. Qxc2 {[%emt 0:00:12]} Rfd8 {[%emt 0:00:37]} 29. Rxd8+ {[%emt 0:00:23]} Qxd8+ {[%emt 0:00:23]} 30. Ke2 {[%emt 0:00:12]} a3 {[%emt 0:01:12]} 31. Qc3 {[%emt 0:00:10]} Qe7 {[%emt 0:00:17]} 32. Qe5 {[%emt 0:00:18]} Rc8 {[%emt 0:00:10]} 33. Rg6 {[%emt 0:00:35]} Rc2+ {[%emt 0:03:20]} 34. Kf3 {[%emt 0:00:26]} Kh7 {[%emt 0:04:56]} 35. Rxe6 {[%emt 0:00:57]} Qf7 {[%emt 0:00:19]} 36. Kg2 {[%emt 0:03:08]} Qh5 {[%emt 0:01:23]} 37. Qa5 {[%emt 0:01:21]} Qg4+ {[%emt 0:00:15]} 38. Kf1 {[%emt 0:00:05]} Rc1+ {[%emt 0:00:09]} 39. Qe1 {[%emt 0:00:05]} Rxe1+ {[%emt 0:00:03]} 40. Kxe1 {[%emt 0:00:08]} Qd1# {[%emt 0:00:04]} 0-1

[Event "EYCC Girls U10 2021"]
[Site "Tornelo"]
[Date "2021.10.15"]
[Round "2.11"]
[White "Semenova, Vasilisa"]
[Black "Berezovskaya, Arina"]
[Result "1/2-1/2"]
[ECO "E32"]
[WhiteElo "1305"]
[BlackElo "1102"]
[Annotator "NA"]
[PlyCount "163"]
[EventDate "2021.10.15"]
[EventType "swiss"]
[EventCountry "NET"]
[SourceTitle "playchess.com"]
[Source "ChessBase"]
[SourceQuality "1"]
[TimeControl "5400+30"]

1. d4 {[%emt 0:00:30]} Nf6 {[%emt 0:00:37]} 2. c4 {[%emt 0:00:05]} e6 {[%emt 0:00:05]} 3. Nc3 {[%emt 0:00:04]} Bb4 {[%emt 0:00:05]} 4. Qc2 {[%emt 0:00:06]} O-O {[%emt 0:00:10]} 5. Bg5 {[%emt 0:00:07]} h6 {[%emt 0:00:11]} 6. Bh4 {[%emt 0:00:10]} c5 {[%emt 0:00:15]} 7. dxc5 {[%emt 0:00:12]} Na6 {[%emt 0:00:16]} 8. a3 {[%emt 0:00:26]} Bxc3+ {[%emt 0:00:06]} 9. Qxc3 {[%emt 0:00:07]} Nxc5 {[%emt 0:00:07]} 10. b4 {[%emt 0:00:12]} Nce4 {[%emt 0:00:27]} 11. Qd4 {[%emt 0:00:12]} Qb6 {[%emt 0:01:51]} 12. Bxf6 {[%emt 0:03:19]} Nxf6 {[%emt 0:00:33]} 13. e3 {[%emt 0:03:57]} Qxd4 {[%emt 0:02:50]} 14. exd4 {[%emt 0:00:06]} d5 {[%emt 0:00:14]} 15. c5 {[%emt 0:00:16]} Bd7 {[%emt 0:00:21]} 16. Nf3 {[%emt 0:00:10]} Ne4 {[%emt 0:01:49]} 17. Bd3 {[%emt 0:00:54]} Ng5 {[%emt 0:06:33]} 18. Ne5 {[%emt 0:03:29]} Be8 {[%emt 0:00:53]} 19. h4 {[%emt 0:00:33]} Nh7 {[%emt 0:01:05]} 20. Kd2 {[%emt 0:05:30]} f6 {[%emt 0:00:36]} 21. Nf3 {[%emt 0:02:06]} Bh5 {[%emt 0:02:57]} 22. Rae1 {[%emt 0:02:42]} Bxf3 {[%emt 0:02:13]} 23. gxf3 {[%emt 0:00:05]} Rfe8 {[%emt 0:00:36]} 24. f4 {[%emt 0:00:15]} Nf8 {[%emt 0:01:19]} 25. Bb5 {[%emt 0:00:24]} Re7 {[%emt 0:01:52]} 26. Re3 {[%emt 0:01:55]} a6 {[%emt 0:01:37]} 27. Ba4 {[%emt 0:00:08]} b6 {[%emt 0:06:12]} 28. Bc6 {[%emt 0:02:43]} Rc8 {[%emt 0:03:09]} 29. Ba4 {[%emt 0:02:02]} a5 {[%emt 0:05:43]} 30. Rhe1 {[%emt 0:01:45]} axb4 {[%emt 0:03:13]} 31. axb4 {[%emt 0:00:10]} bxc5 {[%emt 0:03:13]} 32. bxc5 {[%emt 0:00:16]} Ra7 {[%emt 0:01:08]} 33. Bc2 {[%emt 0:00:21]} Ra2 {[%emt 0:00:51]} 34. Kc3 {[%emt 0:00:25]} Ra3+ {[%emt 0:00:40]} 35. Kd2 {[%emt 0:00:07]} Rxe3 {[%emt 0:04:07]} 36. fxe3 {[%emt 0:00:22]} e5 {[%emt 0:00:55]} 37. Bb3 {[%emt 0:02:05]} exd4 {[%emt 0:03:33]} 38. exd4 {[%emt 0:00:12]} Kh8 {[%emt 0:03:32]} 39. f5 {[%emt 0:00:43]} g6 {[%emt 0:01:12]} 40. fxg6 {[%emt 0:00:21]} Nxg6 {[%emt 0:00:23]} 41. Bxd5 {[%emt 0:01:48]} Rd8 {[%emt 0:00:33]} 42. Be4 {[%emt 0:00:31]} f5 {[%emt 0:09:27]} 43. Bxf5 {[%emt 0:01:12]} Rxd4+ {[%emt 0:01:44]} 44. Kc3 {[%emt 0:01:01]} Rd5 {[%emt 0:00:43]} 45. Bxg6 {[%emt 0:00:06]} Rxc5+ {[%emt 0:00:09]} 46. Kd4 {[%emt 0:00:03]} Ra5 {[%emt 0:01:47]} 47. h5 {[%emt 0:00:11]} Kg7 {[%emt 0:00:52]} 48. Re7+ {[%emt 0:00:09]} Kf6 {[%emt 0:01:17]} 49. Ke4 {[%emt 0:00:27]} Rc5 {[%emt 0:02:06]} 50. Rf7+ {[%emt 0:00:11]} Kg5 {[%emt 0:00:10]} 51. Kd4 {[%emt 0:00:13]} Ra5 {[%emt 0:00:19]} 52. Rg7 {[%emt 0:00:15]} Kf6 {[%emt 0:00:41]} 53. Rg8 {[%emt 0:00:09]} Ra6 {[%emt 0:07:50]} 54. Bd3 {[%emt 0:00:41]} Rd6+ {[%emt 0:00:22]} 55. Ke4 {[%emt 0:00:05]} Re6+ {[%emt 0:03:52]} 56. Kf4 {[%emt 0:00:08]} Kf7 {[%emt 0:00:40]} 57. Rh8 {[%emt 0:00:16]} Rf6+ {[%emt 0:02:00]} 58. Kg4 {[%emt 0:00:08]} Rd6 {[%emt 0:01:52]} 59. Bg6+ {[%emt 0:00:07]} Kg7 {[%emt 0:01:12]} 60. Rh7+ {[%emt 0:00:09]} Kg8 {[%emt 0:00:30]} 61. Rxh6 {[%emt 0:00:05]} Rd7 {[%emt 0:01:32]} 62. Kg5 {[%emt 0:00:20]} Rg7 {[%emt 0:01:16]} 63. Kf6 {[%emt 0:00:11]} Rc7 {[%emt 0:00:34]} 64. Ke5 {[%emt 0:00:13]} Re7+ {[%emt 0:00:26]} 65. Kd6 {[%emt 0:00:07]} Ra7 {[%emt 0:00:30]} 66. Kc5 {[%emt 0:00:11]} Rc7+ {[%emt 0:00:41]} 67. Kb6 {[%emt 0:00:11]} Rg7 {[%emt 0:00:25]} 68. Be4 {[%emt 0:00:16]} Re7 {[%emt 0:00:30]} 69. Rg6+ {[%emt 0:00:53]} Rg7 {[%emt 0:00:16]} 70. Rd6 {[%emt 0:01:42]} Re7 {[%emt 0:00:20]} 71. Bf5 {[%emt 0:00:19]} Re5 {[%emt 0:02:08]} 72. Bg4 {[%emt 0:00:55]} Re4 {[%emt 0:01:05]} 73. Bf3 {[%emt 0:00:36]} Rf4 {[%emt 0:00:24]} 74. Bd1 {[%emt 0:00:24]} Kg7 {[%emt 0:00:28]} 75. Bc2 {[%emt 0:00:28]} Rf6 {[%emt 0:01:24]} 76. Rxf6 {[%emt 0:01:43]} Kxf6 {[%emt 0:00:06]} 77. h6 {[%emt 0:00:03]} Kf7 {[%emt 0:00:36]} 78. Bh7 {[%emt 0:00:05]} Kf6 {[%emt 0:02:03]} 79. Bf5 {[%emt 0:00:25]} Kf7 {[%emt 0:00:34]} 80. Bh7 {[%emt 0:00:14]} Kf6 {[%emt 0:00:06]} 81. Be4 {[%emt 0:00:30]} Kf7 {[%emt 0:00:15]} 82. Bh7 {[%emt 0:00:16]} 1/2-1/2

[Event "EYCC Girls U10 2021"]
[Site "Tornelo"]
[Date "2021.10.15"]
[Round "3.1"]
[White "Mateeva, Yana"]
[Black "Preobrazhenskaya, Diana"]
[Result "0-1"]
[ECO "A28"]
[WhiteElo "1299"]
[BlackElo "1764"]
[Annotator "NA"]
[PlyCount "110"]
[EventDate "2021.10.15"]
[EventType "swiss"]
[EventCountry "NET"]
[SourceTitle "playchess.com"]
[Source "ChessBase"]
[SourceQuality "1"]
[TimeControl "5400+30"]

1. c4 {[%emt 0:00:30]} e5 {[%emt 0:00:41]} 2. Nc3 {[%emt 0:00:20]} Nf6 {[%emt 0:00:07]} 3. Nf3 {[%emt 0:01:09]} Nc6 {[%emt 0:00:05]} 4. e3 {[%emt 0:00:56]} d5 {[%emt 0:02:50]} 5. d4 {[%emt 0:02:42]} exd4 {[%emt 0:02:37]} 6. Nxd4 {[%emt 0:00:49]} Be7 {[%emt 0:04:41]} 7. Nxc6 {[%emt 0:01:26]} bxc6 {[%emt 0:00:22]} 8. Be2 {[%emt 0:01:04]} O-O {[%emt 0:00:28]} 9. O-O {[%emt 0:02:01]} Be6 {[%emt 0:01:32]} 10. Bf3 {[%emt 0:04:25]} dxc4 {[%emt 0:03:31]} 11. Bxc6 {[%emt 0:03:12]} Rb8 {[%emt 0:00:34]} 12. Qe2 {[%emt 0:02:07]} Qd6 {[%emt 0:00:27]} 13. Bf3 {[%emt 0:01:19]} Qb6 {[%emt 0:04:54]} 14. Rb1 {[%emt 0:04:41]} Rfd8 {[%emt 0:01:37]} 15. Bd2 {[%emt 0:02:12]} Qa6 {[%emt 0:03:57]} 16. a3 {[%emt 0:09:10]} Rd3 {[%emt 0:01:47]} 17. Rfd1 {[%emt 0:05:50]} Rbd8 {[%emt 0:02:43]} 18. Be1 {[%emt 0:04:30]} Nd7 {[%emt 0:05:03]} 19. Be4 {[%emt 0:02:11]} Nc5 {[%emt 0:01:08]} 20. Bxd3 {[%emt 0:09:07]} cxd3 {[%emt 0:00:33]} 21. Qh5 {[%emt 0:01:55]} Bb3 {[%emt 0:08:48]} 22. Rd2 {[%emt 0:00:53]} Bc2 {[%emt 0:02:43]} 23. Qe5 {[%emt 0:05:47]} Bd6 {[%emt 0:03:05]} 24. Qf5 {[%emt 0:01:00]} Bxb1 {[%emt 0:04:55]} 25. Nxb1 {[%emt 0:00:30]} Qc4 {[%emt 0:06:26]} 26. Nc3 {[%emt 0:01:33]} Nb3 {[%emt 0:01:59]} 27. Rd1 {[%emt 0:00:43]} Bxa3 {[%emt 0:10:48]} 28. bxa3 {[%emt 0:00:40]} d2 {[%emt 0:00:34]} 29. Bxd2 {[%emt 0:00:50]} Qxc3 {[%emt 0:00:45]} 30. Be1 {[%emt 0:04:51]} Nd2 {[%emt 0:05:54]} 31. Rxd2 {[%emt 0:00:48]} Rb8 {[%emt 0:01:02]} 32. Qd7 {[%emt 0:04:15]} Rf8 {[%emt 0:02:37]} 33. h3 {[%emt 0:03:05]} Qxa3 {[%emt 0:00:50]} 34. Rd1 {[%emt 0:02:41]} Qb3 {[%emt 0:00:58]} 35. Rc1 {[%emt 0:01:10]} h6 {[%emt 0:00:42]} 36. Rxc7 {[%emt 0:01:00]} Qb1 {[%emt 0:00:35]} 37. Qd2 {[%emt 0:00:43]} a6 {[%emt 0:00:58]} 38. Rc1 {[%emt 0:00:52]} Qe4 {[%emt 0:01:20]} 39. Qc2 {[%emt 0:01:04]} Qe5 {[%emt 0:03:29]} 40. Qc3 {[%emt 0:01:23]} Qb5 {[%emt 0:02:06]} 41. Qc4 {[%emt 0:01:09]} Qb2 {[%emt 0:00:47]} 42. Qc2 {[%emt 0:00:27]} Qe5 {[%emt 0:00:23]} 43. Bc3 {[%emt 0:00:34]} Qb5 {[%emt 0:01:09]} 44. Qb2 {[%emt 0:01:15]} Qg5 {[%emt 0:00:34]} 45. Ra1 {[%emt 0:00:47]} Qg6 {[%emt 0:00:41]} 46. Qb1 {[%emt 0:00:55]} Qc6 {[%emt 0:00:50]} 47. Qc1 {[%emt 0:00:49]} Rc8 {[%emt 0:00:55]} 48. Bd2 {[%emt 0:01:17]} Qd7 {[%emt 0:02:11]} 49. Qb2 {[%emt 0:00:32]} Qd3 {[%emt 0:00:48]} 50. Qd4 {[%emt 0:01:01]} Qg6 {[%emt 0:01:24]} 51. Bc3 {[%emt 0:00:47]} Rc6 {[%emt 0:01:08]} 52. Qd8+ {[%emt 0:01:13]} Kh7 {[%emt 0:00:03]} 53. Bd4 {[%emt 0:00:18]} Qe4 {[%emt 0:01:21]} 54. Qa5 {[%emt 0:01:11]} Rg6 {[%emt 0:00:32]} 55. Qe5 {[%emt 0:00:31]} Qxg2# {[%emt 0:00:16]} 0-1

[Event "EYCC Girls U10 2021"]
[Site "Tornelo"]
[Date "2021.10.15"]
[Round "3.2"]
[White "Beber, Anja"]
[Black "Blinova, Sofia"]
[Result "0-1"]
[ECO "E30"]
[WhiteElo "1552"]
[BlackElo "1297"]
[Annotator "NA"]
[PlyCount "94"]
[EventDate "2021.10.15"]
[EventType "swiss"]
[EventCountry "NET"]
[SourceTitle "playchess.com"]
[Source "ChessBase"]
[SourceQuality "1"]
[TimeControl "5400+30"]

1. d4 {[%emt 0:00:30]} Nf6 {[%emt 0:00:42]} 2. c4 {[%emt 0:00:04]} e6 {[%emt 0:00:03]} 3. Nc3 {[%emt 0:00:03]} Bb4 {[%emt 0:00:03]} 4. Bg5 {[%emt 0:00:25]} h6 {[%emt 0:00:24]} 5. Bh4 {[%emt 0:00:39]} Bxc3+ {[%emt 0:01:23]} 6. bxc3 {[%emt 0:00:04]} c5 {[%emt 0:01:11]} 7. e3 {[%emt 0:00:14]} O-O {[%emt 0:02:50]} 8. Bd3 {[%emt 0:00:09]} d6 {[%emt 0:01:01]} 9. Nf3 {[%emt 0:00:05]} Nbd7 {[%emt 0:01:37]} 10. O-O {[%emt 0:00:04]} b6 {[%emt 0:02:37]} 11. e4 {[%emt 0:02:45]} e5 {[%emt 0:01:59]} 12. Bg3 {[%emt 0:00:49]} Re8 {[%emt 0:00:57]} 13. Re1 {[%emt 0:00:30]} Qe7 {[%emt 0:00:58]} 14. Qc2 {[%emt 0:01:46]} Bb7 {[%emt 0:01:59]} 15. Nh4 {[%emt 0:04:29]} g6 {[%emt 0:01:09]} 16. d5 {[%emt 0:01:23]} Nh5 {[%emt 0:00:51]} 17. Qd2 {[%emt 0:00:39]} Kh7 {[%emt 0:02:20]} 18. Qe3 {[%emt 0:01:24]} g5 {[%emt 0:02:39]} 19. Nf5 {[%emt 0:00:08]} Qf6 {[%emt 0:00:38]} 20. Be2 {[%emt 0:03:38]} Nf4 {[%emt 0:00:49]} 21. Bg4 {[%emt 0:02:28]} h5 {[%emt 0:03:48]} 22. Bxf4 {[%emt 0:00:57]} exf4 {[%emt 0:01:09]} 23. Qh3 {[%emt 0:00:07]} Ne5 {[%emt 0:01:28]} 24. Bxh5 {[%emt 0:01:04]} Kg8 {[%emt 0:00:51]} 25. Be2 {[%emt 0:03:01]} Bc8 {[%emt 0:02:03]} 26. Qh6 {[%emt 0:02:06]} Qxh6 {[%emt 0:00:26]} 27. Nxh6+ {[%emt 0:00:03]} Kg7 {[%emt 0:00:25]} 28. Nf5+ {[%emt 0:00:03]} Bxf5 {[%emt 0:00:11]} 29. exf5 {[%emt 0:00:03]} Kf6 {[%emt 0:00:15]} 30. a4 {[%emt 0:00:09]} Kxf5 {[%emt 0:00:31]} 31. a5 {[%emt 0:00:03]} g4 {[%emt 0:02:07]} 32. f3 {[%emt 0:00:13]} gxf3 {[%emt 0:00:43]} 33. gxf3 {[%emt 0:00:19]} bxa5 {[%emt 0:03:11]} 34. Rxa5 {[%emt 0:00:09]} Nxf3+ {[%emt 0:00:35]} 35. Bxf3 {[%emt 0:01:13]} Rxe1+ {[%emt 0:00:04]} 36. Kf2 {[%emt 0:00:01]} Re7 {[%emt 0:01:45]} 37. Ra6 {[%emt 0:00:09]} Rd8 {[%emt 0:01:06]} 38. h4 {[%emt 0:00:17]} Rb7 {[%emt 0:02:58]} 39. Ra2 {[%emt 0:00:47]} Rdb8 {[%emt 0:01:13]} 40. Be2 {[%emt 0:00:31]} Rh8 {[%emt 0:03:42]} 41. h5 {[%emt 0:00:13]} Ra8 {[%emt 0:01:47]} 42. Ra6 {[%emt 0:00:53]} Rb6 {[%emt 0:00:35]} 43. Ra1 {[%emt 0:00:05]} a6 {[%emt 0:01:06]} 44. Rg1 {[%emt 0:00:07]} Rh8 {[%emt 0:01:35]} 45. Rg7 {[%emt 0:01:20]} Kf6 {[%emt 0:01:08]} 46. Rg1 {[%emt 0:00:29]} Rb2 {[%emt 0:01:24]} 47. Ra1 {[%emt 0:01:17]} Rxh5 {[%emt 0:01:24]} 0-1

[Event "EYCC Girls U10 2021"]
[Site "Tornelo"]
[Date "2021.10.15"]
[Round "3.3"]
[White "Miroshnik, Irina"]
[Black "Asachenko, Ksenia"]
[Result "0-1"]
[ECO "D08"]
[WhiteElo "1147"]
[BlackElo "1382"]
[Annotator "NA"]
[PlyCount "79"]
[EventDate "2021.10.15"]
[EventType "swiss"]
[EventCountry "NET"]
[SourceTitle "playchess.com"]
[Source "ChessBase"]
[SourceQuality "1"]
[TimeControl "5400+30"]

1. d4 {[%emt 0:00:30]} d5 {[%emt 0:00:34]} 2. c4 {[%emt 0:00:05]} e5 {[%emt 0:00:04]} 3. dxe5 {[%emt 0:00:18]} d4 {[%emt 0:00:04]} 4. Nf3 {[%emt 0:00:51]} Nc6 {[%emt 0:00:13]} 5. h3 {[%emt 0:00:10]} Nge7 {[%emt 0:01:08]} 6. e3 {[%emt 0:00:20]} Nf5 {[%emt 0:05:37]} 7. exd4 {[%emt 0:01:17]} Bb4+ {[%emt 0:01:46]} 8. Bd2 {[%emt 0:01:04]} Nfxd4 {[%emt 0:11:06]} 9. Bxb4 {[%emt 0:02:12]} Nxf3+ {[%emt 0:02:07]} 10. Qxf3 {[%emt 0:01:05]} Nxb4 {[%emt 0:01:14]} 11. Qc3 {[%emt 0:00:54]} Qe7 {[%emt 0:02:03]} 12. Nd2 {[%emt 0:01:02]} Bf5 {[%emt 0:01:22]} 13. Rd1 {[%emt 0:16:16]} Nxa2 {[%emt 0:04:33]} 14. Qd4 {[%emt 0:03:54]} Nb4 {[%emt 0:05:09]} 15. Qf4 {[%emt 0:00:47]} Nc2+ {[%emt 0:01:05]} 16. Ke2 {[%emt 0:00:14]} Rd8 {[%emt 0:12:02]} 17. g4 {[%emt 0:06:18]} Bd3+ {[%emt 0:02:08]} 18. Kf3 {[%emt 0:00:42]} Rd4 {[%emt 0:00:56]} 19. Bxd3 {[%emt 0:05:52]} Rxf4+ {[%emt 0:03:07]} 20. Kxf4 {[%emt 0:00:08]} Nd4 {[%emt 0:01:46]} 21. Ne4 {[%emt 0:01:48]} O-O {[%emt 0:04:32]} 22. Rhe1 {[%emt 0:02:02]} Re8 {[%emt 0:02:30]} 23. Ng3 {[%emt 0:01:50]} g5+ {[%emt 0:08:54]} 24. Ke3 {[%emt 0:01:58]} Qxe5+ {[%emt 0:00:31]} 25. Ne4 {[%emt 0:00:44]} c5 {[%emt 0:01:54]} 26. Bb1 {[%emt 0:01:32]} Qf4+ {[%emt 0:03:26]} 27. Kd3 {[%emt 0:01:09]} Qf3+ {[%emt 0:01:27]} 28. Kd2 {[%emt 0:01:15]} Nb3+ {[%emt 0:01:58]} 29. Kc2 {[%emt 0:00:49]} Na1+ {[%emt 0:01:50]} 30. Kc1 {[%emt 0:01:37]} Qf4+ {[%emt 0:04:16]} 31. Re3 {[%emt 0:00:37]} Nb3+ {[%emt 0:06:05]} 32. Kc2 {[%emt 0:00:16]} Na1+ {[%emt 0:00:48]} 33. Kc1 {[%emt 0:00:33]} Kh8 {[%emt 0:02:04]} 34. Bc2 {[%emt 0:02:47]} Nxc2 {[%emt 0:01:03]} 35. Kxc2 {[%emt 0:00:06]} Rxe4 {[%emt 0:00:51]} 36. Rd8+ {[%emt 0:01:00]} Kg7 {[%emt 0:00:12]} 37. Rxe4 {[%emt 0:00:25]} Qxe4+ {[%emt 0:00:05]} 38. Kc3 {[%emt 0:00:04]} Qf3+ {[%emt 0:00:08]} 39. Rd3 {[%emt 0:00:06]} Qxf2 {[%emt 0:00:09]} 40. b3 {[%emt 0:00:06]} 0-1

[Event "EYCC Girls U10 2021"]
[Site "Tornelo"]
[Date "2021.10.15"]
[Round "3.4"]
[White "Lajdamik, Kinga"]
[Black "Bashirli, Saadat"]
[Result "1/2-1/2"]
[ECO "B27"]
[WhiteElo "1367"]
[BlackElo "1284"]
[Annotator "NA"]
[PlyCount "103"]
[EventDate "2021.10.15"]
[EventType "swiss"]
[EventCountry "NET"]
[SourceTitle "playchess.com"]
[Source "ChessBase"]
[SourceQuality "1"]
[TimeControl "5400+30"]

1. e4 {[%emt 0:00:30]} c5 {[%emt 0:00:35]} 2. Nf3 {[%emt 0:00:08]} g6 {[%emt 0:00:07]} 3. d4 {[%emt 0:00:08]} cxd4 {[%emt 0:00:04]} 4. Qxd4 {[%emt 0:00:08]} Nf6 {[%emt 0:00:06]} 5. Nc3 {[%emt 0:00:10]} Nc6 {[%emt 0:00:04]} 6. Qa4 {[%emt 0:00:09]} d6 {[%emt 0:00:10]} 7. e5 {[%emt 0:00:22]} dxe5 {[%emt 0:00:10]} 8. Nxe5 {[%emt 0:00:09]} Bd7 {[%emt 0:00:11]} 9. Nxd7 {[%emt 0:00:11]} Qxd7 {[%emt 0:00:09]} 10. Be3 {[%emt 0:00:11]} Bg7 {[%emt 0:00:41]} 11. Rd1 {[%emt 0:00:19]} Qc8 {[%emt 0:00:25]} 12. Be2 {[%emt 0:00:14]} O-O {[%emt 0:00:12]} 13. O-O {[%emt 0:00:15]} Rd8 {[%emt 0:01:31]} 14. Qh4 {[%emt 0:03:02]} Qf5 {[%emt 0:00:46]} 15. Rc1 {[%emt 0:04:10]} Ne5 {[%emt 0:06:43]} 16. h3 {[%emt 0:06:55]} Qe6 {[%emt 0:01:37]} 17. Kh1 {[%emt 0:05:45]} Qc6 {[%emt 0:02:25]} 18. Qb4 {[%emt 0:11:15]} Bf8 {[%emt 0:03:32]} 19. f4 {[%emt 0:05:10]} Ned7 {[%emt 0:01:28]} 20. Bf3 {[%emt 0:04:34]} Qe6 {[%emt 0:05:12]} 21. Rfe1 {[%emt 0:01:28]} Qd6 {[%emt 0:01:34]} 22. Qxd6 {[%emt 0:04:15]} exd6 {[%emt 0:00:07]} 23. Bxb7 {[%emt 0:08:43]} Rab8 {[%emt 0:00:22]} 24. Bf3 {[%emt 0:00:26]} Rxb2 {[%emt 0:00:48]} 25. Bxa7 {[%emt 0:02:50]} Rc8 {[%emt 0:01:37]} 26. Bd4 {[%emt 0:11:43]} Rb4 {[%emt 0:02:24]} 27. Red1 {[%emt 0:02:28]} Rxd4 {[%emt 0:06:35]} 28. Rxd4 {[%emt 0:00:14]} Rxc3 {[%emt 0:00:09]} 29. a4 {[%emt 0:03:33]} Ra3 {[%emt 0:01:44]} 30. Bc6 {[%emt 0:01:26]} Nc5 {[%emt 0:00:40]} 31. Kh2 {[%emt 0:03:39]} Bh6 {[%emt 0:01:47]} 32. g3 {[%emt 0:10:54]} Nh5 {[%emt 0:01:51]} 33. Rg1 {[%emt 0:00:32]} Ra2 {[%emt 0:00:38]} 34. Rg2 {[%emt 0:00:44]} Ne6 {[%emt 0:00:56]} 35. Bd5 {[%emt 0:04:25]} Ra1 {[%emt 0:01:56]} 36. Bxe6 {[%emt 0:00:23]} fxe6 {[%emt 0:00:06]} 37. Re2 {[%emt 0:01:54]} Kf7 {[%emt 0:04:01]} 38. Rb4 {[%emt 0:02:03]} Ra3 {[%emt 0:03:02]} 39. Rg2 {[%emt 0:00:43]} Ra1 {[%emt 0:00:38]} 40. h4 {[%emt 0:00:37]} Nf6 {[%emt 0:00:41]} 41. Rb7+ {[%emt 0:00:31]} Kg8 {[%emt 0:00:18]} 42. Ra7 {[%emt 0:00:31]} e5 {[%emt 0:02:21]} 43. fxe5 {[%emt 0:00:54]} dxe5 {[%emt 0:00:05]} 44. Re2 {[%emt 0:00:35]} Rf1 {[%emt 0:02:29]} 45. Kg2 {[%emt 0:00:33]} Rc1 {[%emt 0:00:40]} 46. Rxe5 {[%emt 0:00:57]} Rxc2+ {[%emt 0:00:20]} 47. Kh3 {[%emt 0:00:14]} Bf8 {[%emt 0:00:34]} 48. Ra6 {[%emt 0:01:31]} Nh5 {[%emt 0:02:01]} 49. Re3 {[%emt 0:00:50]} Rc1 {[%emt 0:01:45]} 50. Rf3 {[%emt 0:00:28]} Rc8 {[%emt 0:01:10]} 51. Ra7 {[%emt 0:01:21]} Bd6 {[%emt 0:01:20]} 52. Rd3 {[%emt 0:00:45]} 1/2-1/2

[Event "EYCC Girls U10 2021"]
[Site "Tornelo"]
[Date "2021.10.15"]
[Round "3.5"]
[White "Kutateladze, Anastasia"]
[Black "Sokolova, Regina"]
[Result "1/2-1/2"]
[ECO "B12"]
[WhiteElo "1137"]
[BlackElo "1364"]
[Annotator "NA"]
[PlyCount "54"]
[EventDate "2021.10.15"]
[EventType "swiss"]
[EventCountry "NET"]
[SourceTitle "playchess.com"]
[Source "ChessBase"]
[SourceQuality "1"]
[TimeControl "5400+30"]

1. e4 {[%emt 0:00:30]} c6 {[%emt 0:00:34]} 2. d4 {[%emt 0:00:06]} d5 {[%emt 0:00:02]} 3. e5 {[%emt 0:00:07]} Bf5 {[%emt 0:00:03]} 4. Bd3 {[%emt 0:00:07]} Bxd3 {[%emt 0:00:02]} 5. Qxd3 {[%emt 0:00:06]} e6 {[%emt 0:00:03]} 6. f4 {[%emt 0:00:06]} Ne7 {[%emt 0:00:18]} 7. Ne2 {[%emt 0:00:08]} Qa5+ {[%emt 0:00:57]} 8. c3 {[%emt 0:00:24]} Qa6 {[%emt 0:00:08]} 9. Qf3 {[%emt 0:01:33]} Nd7 {[%emt 0:00:51]} 10. O-O {[%emt 0:01:07]} g6 {[%emt 0:04:21]} 11. Nd2 {[%emt 0:01:21]} Bg7 {[%emt 0:04:09]} 12. h3 {[%emt 0:00:45]} Nf5 {[%emt 0:01:57]} 13. g4 {[%emt 0:01:24]} Ne7 {[%emt 0:00:07]} 14. Ng3 {[%emt 0:01:20]} O-O-O {[%emt 0:01:51]} 15. b4 {[%emt 0:06:02]} Nb6 {[%emt 0:13:43]} 16. Nb3 {[%emt 0:06:12]} Na4 {[%emt 0:05:25]} 17. Bd2 {[%emt 0:03:36]} Kb8 {[%emt 0:01:17]} 18. Ne2 {[%emt 0:04:28]} b6 {[%emt 0:03:20]} 19. h4 {[%emt 0:09:53]} Nc8 {[%emt 0:02:31]} 20. Rfe1 {[%emt 0:03:58]} Bf8 {[%emt 0:02:04]} 21. Be3 {[%emt 0:01:57]} Be7 {[%emt 0:03:45]} 22. Bf2 {[%emt 0:02:14]} h6 {[%emt 0:01:31]} 23. g5 {[%emt 0:03:05]} Rdf8 {[%emt 0:02:04]} 24. Rec1 {[%emt 0:02:11]} b5 {[%emt 0:06:50]} 25. Rc2 {[%emt 0:06:40]} Ncb6 {[%emt 0:05:21]} 26. Na5 {[%emt 0:00:30]} Na8 {[%emt 0:02:43]} 27. Nc1 {[%emt 0:01:56]} Rc8 {[%emt 0:03:31]} 1/2-1/2

[Event "EYCC Girls U10 2021"]
[Site "Tornelo"]
[Date "2021.10.15"]
[Round "3.6"]
[White "Bubnova, Uliana"]
[Black "Aydogan, Arya"]
[Result "0-1"]
[ECO "C54"]
[WhiteElo "1333"]
[BlackElo "1250"]
[Annotator "NA"]
[PlyCount "38"]
[EventDate "2021.10.15"]
[EventType "swiss"]
[EventCountry "NET"]
[SourceTitle "playchess.com"]
[Source "ChessBase"]
[SourceQuality "1"]
[TimeControl "5400+30"]

1. e4 {[%emt 0:00:30]} e5 {[%emt 0:00:35]} 2. Nf3 {[%emt 0:00:06]} Nc6 {[%emt 0:00:04]} 3. d4 {[%emt 0:00:05]} exd4 {[%emt 0:00:04]} 4. Bc4 {[%emt 0:00:05]} Bc5 {[%emt 0:00:32]} 5. c3 {[%emt 0:02:01]} Nf6 {[%emt 0:00:07]} 6. e5 {[%emt 0:03:24]} d5 {[%emt 0:04:19]} 7. exf6 {[%emt 0:01:28]} dxc4 {[%emt 0:00:03]} 8. Qe2+ {[%emt 0:00:11]} Be6 {[%emt 0:00:23]} 9. Ng5 {[%emt 0:08:49]} Qxf6 {[%emt 0:04:34]} 10. O-O {[%emt 0:02:27]} Bb6 {[%emt 0:03:42]} 11. cxd4 {[%emt 0:01:54]} Nxd4 {[%emt 0:03:35]} 12. Qe4 {[%emt 0:01:30]} O-O-O {[%emt 0:00:25]} 13. Na3 {[%emt 0:08:17]} Bf5 {[%emt 0:08:24]} 14. Qe1 {[%emt 0:00:58]} Rhe8 {[%emt 0:01:26]} 15. Be3 {[%emt 0:01:30]} h6 {[%emt 0:06:49]} 16. Nf3 {[%emt 0:02:00]} Nxf3+ {[%emt 0:00:18]} 17. gxf3 {[%emt 0:00:07]} Bh3 {[%emt 0:00:16]} 18. Qc1 {[%emt 0:00:37]} Qxf3 {[%emt 0:01:12]} 19. Bxb6 {[%emt 0:00:54]} Qg2# {[%emt 0:00:04]} 0-1